fUST/lending_fUST_20250528
["ID","MTS","AMOUNT","RATE_DAILY","PERIOD"]
[362674826,1748393439589,-468.8,0.00020917,2]
[362674828,1748393439598,-430.0,0.00020917,2]
[362674830,1748393439609,-537.67,0.00020917,2]
[362674832,1748393439619,-430.0,0.00020917,2]
[362674834,1748393439631,-430.0,0.00020917,2]
[362674836,1748393439640,-584.15,0.00020917,2]
[362674838,1748393439650,-410.41608445,0.00020934,4]
[362674840,1748393439659,-210.807,0.00020945,2]
[362674842,1748393439669,-430.0,0.00021095,2]
[362674844,1748393439678,-410.41608445,0.00021107,4]
[362674846,1748393439688,-753.46779579,0.00021127,2]
[362674848,1748393439697,-500.0,0.00021164,2]
[362674850,1748393439706,-430.0,0.00021191,2]
[362674852,1748393439716,-454.21,0.00021191,2]
[362674854,1748393439725,-449.73,0.00021191,2]
[362674856,1748393439735,-430.0,0.00021191,2]
[362674858,1748393439744,-430.0,0.00021191,2]
[362674860,1748393439754,-430.0,0.00021191,2]
[362674862,1748393439763,-187.32,0.00021191,2]
[362674864,1748393439772,-430.0,0.00021191,2]
[362674866,1748393439782,-430.0,0.00021191,2]
[362674868,1748393439792,-430.0,0.00021191,2]
[362674870,1748393439801,-430.0,0.00021191,2]
[362674872,1748393439810,-430.0,0.00021191,2]
[362674874,1748393439820,-430.0,0.00021191,2]
[362674876,1748393439829,-430.0,0.00021191,2]
[362674878,1748393439840,-430.0,0.00021191,2]
[362674880,1748393439850,-584.15,0.00021191,2]
[362674882,1748393439860,-410.41608445,0.00021279,5]
[362674884,1748393439869,-5756.58,0.00021281,2]
[362674886,1748393439881,-415.27349359,0.00021368,2]
[362674888,1748393439890,-430.0,0.00021369,2]
[362674890,1748393439900,-410.41608445,0.00021452,5]
[362674892,1748393439909,-430.0,0.00021465,2]
[362674894,1748393439919,-454.21,0.00021465,2]
[362674896,1748393439928,-449.73,0.00021465,2]
[362674898,1748393439938,-430.0,0.00021465,2]
[362674900,1748393439947,-430.0,0.00021465,2]
[362674902,1748393439957,-430.0,0.00021465,2]
[362674904,1748393439966,-430.0,0.00021465,2]
[362674906,1748393439976,-291.32272123,0.00021465,2]
[362674908,1748393439986,-430.0,0.00021465,2]
[362674910,1748393439996,-584.15,0.00021465,2]
[362674912,1748393440005,-300.0,0.00021552,2]
[362674914,1748393440015,-410.41608445,0.00021624,5]
[362674916,1748393440025,-184.8374165,0.0002164,2]
[362674918,1748393440034,-430.0,0.00021643,2]
[362674920,1748393440043,-430.0,0.00021739,2]
[362674922,1748393440054,-454.21,0.00021739,2]
[362674924,1748393440063,-449.73,0.00021739,2]
[362674926,1748393440072,-430.0,0.00021739,2]
[362674928,1748393440081,-430.0,0.00021739,2]
[362674930,1748393440090,-430.0,0.00021739,2]
[362674932,1748393440100,-430.0,0.00021739,2]
[362674934,1748393440109,-584.15,0.00021739,2]
[362674936,1748393440118,-410.41608445,0.00021797,6]
[362674938,1748393440130,-1000.0,0.000218,3]
[362674940,1748393440140,-1000.0,0.000218,4]
[362674942,1748393440150,-1000.0,0.000218,5]
[362674944,1748393440160,-405.0,0.0002189,2]
[362674946,1748393440171,-500.0,0.00021917,2]
[362674948,1748393440180,-160.35,0.00021917,2]
[362674950,1748393440193,-410.41608445,0.00021969,6]
[362674952,1748393440203,-753.46779579,0.00021985,2]
[362674954,1748393440214,-172.0,0.00022,2]
[362674956,1748393440224,-430.0,0.00022013,2]
[362674958,1748393440235,-454.21,0.00022013,2]
[362674960,1748393440245,-449.73,0.00022013,2]
[362674962,1748393440255,-430.0,0.00022013,2]
[362674964,1748393440266,-430.0,0.00022013,2]
[362674966,1748393440276,-430.0,0.00022013,2]
[362674968,1748393440287,-584.15,0.00022013,2]
[362674970,1748393440298,-410.41608445,0.00022141,6]
[362674972,1748393440308,-7195.72,0.00022168,2]
[362674974,1748393440317,-355.0258361,0.00022247,2]
[362674976,1748393440326,-500.0,0.0002226,2]
[362674978,1748393440336,-430.0,0.00022287,2]
[362674980,1748393440346,-454.21,0.00022287,2]
[362674982,1748393440355,-449.73,0.00022287,2]
[362674984,1748393440364,-301.23072916,0.00022287,2]
[362674986,1748393440376,-430.0,0.00022287,2]
[362674988,1748393440386,-430.0,0.00022287,2]
[362674990,1748393440396,-584.15,0.00022287,2]
[362674992,1748393440405,-1142.98,0.000223,2]
[362674994,1748393440415,-410.41608445,0.00022314,7]
[362674996,1748393440425,-500.0,0.00022465,2]
[362674998,1748393440434,-410.41608445,0.00022486,7]
[362675001,1748393440444,-430.0,0.00022561,2]
[362675003,1748393440453,-454.21,0.00022561,2]
[362675005,1748393440462,-449.73,0.00022561,2]
[362675007,1748393440472,-430.0,0.00022561,2]
[362675008,1748393440480,-430.0,0.00022561,2]
[362675010,1748393440489,-584.15,0.00022561,2]
[362675012,1748393440499,-891.421304,0.00022637,3]
[362675014,1748393440508,-410.41608445,0.00022659,7]
[362675016,1748393440518,-1006.07,0.000228,6]
[362675018,1748393440527,-721.67,0.00022808,2]
[362675020,1748393440536,-410.41608445,0.00022831,8]
[362675022,1748393440546,-430.0,0.00022835,2]
[362675024,1748393440555,-454.21,0.00022835,2]
[362675026,1748393440565,-449.73,0.00022835,2]
[362675028,1748393440575,-430.0,0.00022835,2]
[362675030,1748393440585,-430.0,0.00022835,2]
[362675032,1748393440595,-584.15,0.00022835,2]
[362675034,1748393440604,-753.46779579,0.00022842,2]
[362675036,1748393440613,-195.027854,0.00022848,2]
[362675038,1748393440624,-244.595642,0.00022849,7]
[362675040,1748393440635,-721.67,0.00022908,7]
[362675042,1748393440644,-424.694,0.00022925,15]
[362675044,1748393440654,-117675.19798102,0.00023,2]
[362675046,1748393440663,-247.98323083,0.00023,2]
[362675048,1748393440672,-3019.18601434,0.00023,2]
[362675050,1748393440682,-423.00916439,0.00023,3]
[362675052,1748393440691,-160.0,0.00023,3]
[362675054,1748393440702,-160.0,0.00023,3]
[362675056,1748393440711,-160.0,0.00023,3]
[362675058,1748393440722,-721.67,0.00023008,5]
[362675060,1748393440732,-500.0,0.00023013,2]
[362675062,1748393440741,-8634.87,0.00023055,2]
[362675064,1748393440750,-207.4,0.00023068,2]
[362675066,1748393440760,-721.67,0.00023108,4]
[362675068,1748393440770,-430.0,0.00023109,2]
[362675070,1748393440779,-454.21,0.00023109,2]
[362675072,1748393440789,-449.73,0.00023109,2]
[362675074,1748393440798,-513.85119733,0.00023109,2]
[362675076,1748393440808,-208.55598689,0.00023109,2]
[362675078,1748393440817,-584.15,0.00023109,2]
[362675080,1748393440827,-157.61818795,0.00023123,2]
[362675082,1748393440837,-721.67,0.00023208,3]
[362675084,1748393440846,-637.0,0.000233,2]
[362675086,1748393440856,-721.67,0.00023308,2]
[362675089,1748393440865,-500.0,0.00023356,2]
[362675091,1748393440876,-430.0,0.00023383,2]
[362675093,1748393440887,-454.21,0.00023383,2]
[362675095,1748393440897,-449.73,0.00023383,2]
[362675097,1748393440906,-584.15,0.00023383,2]
[362675099,1748393440915,-721.67,0.00023408,4]
[362675101,1748393440925,-157.61818795,0.00023425,2]
[362675103,1748393440934,-721.67,0.00023508,3]
[362675105,1748393440944,-500.0,0.00023561,2]
[362675107,1748393440953,-721.67,0.00023608,4]
[362675109,1748393440963,-430.0,0.00023657,2]
[362675111,1748393440972,-454.21,0.00023657,2]
[362675122,1748393441067,-449.73,0.00023657,2]
[362675124,1748393441077,-584.15,0.00023657,2]
[362675126,1748393441086,-151.0,0.000237,10]
[362675128,1748393441095,-753.46779579,0.000237,2]
[362675130,1748393441104,-721.67,0.00023708,6]
[362675132,1748393441114,-157.61818795,0.00023726,2]
[362675134,1748393441124,-2200.0,0.00023771,2]
[362675137,1748393441134,-501.23380576,0.00023773,2]
[362675138,1748393441143,-500.0,0.00023773,2]
[362675141,1748393441152,-500.0,0.00023773,2]
[362675143,1748393441163,-537.63623401,0.00023773,2]
[362675145,1748393441174,-500.0,0.00023773,2]
[362675147,1748393441186,-500.0,0.00023773,2]
[362675149,1748393441195,-500.0,0.00023773,2]
[362675151,1748393441204,-500.0,0.00023773,2]
[362675153,1748393441213,-518.21311571,0.00023773,2]
[362675155,1748393441225,-500.0,0.00023773,2]
[362675157,1748393441234,-500.0,0.00023773,2]
[362675159,1748393441243,-500.0,0.00023773,2]
[362675161,1748393441253,-501.01986666,0.00023773,2]
[362675163,1748393441262,-500.0,0.00023773,2]
[362675165,1748393441271,-500.0,0.00023773,2]
[362675167,1748393441281,-600.0,0.00023773,2]
[362675169,1748393441290,-23458.58163712,0.00023794,2]
[362675171,1748393441299,-16001.14184633,0.000238,2]
[362675199,1748393441564,-430.0,0.00019178,2]
[362675201,1748393441573,-368.52629353,0.00019178,2]
[362675208,1748393441633,-61.47370647,0.00019178,2]
[362675210,1748393441643,-430.0,0.00019178,2]
[362675212,1748393441652,-430.0,0.00019178,2]
[362675214,1748393441662,-300.0,0.00019451,2]
[362675216,1748393441673,-430.0,0.00019452,2]
[362675218,1748393441683,-430.0,0.00019452,2]
[362675221,1748393441693,-430.0,0.00019452,2]
[362675223,1748393441703,-430.0,0.00019452,2]
[362675225,1748393441713,-162.87874045,0.00019726,2]
[362675227,1748393441722,-430.0,0.00019726,2]
[362675229,1748393441732,-430.0,0.00019726,2]
[362675231,1748393441741,-452.35,0.00019726,2]
[362675233,1748393441751,-430.0,0.0002,2]
[362675235,1748393441760,-430.0,0.00020273,2]
[362675237,1748393441769,-430.0,0.00020547,2]
[362675239,1748393441780,-430.0,0.00020821,2]
[362675241,1748393441789,-430.0,0.00021095,2]
[362675243,1748393441799,-430.0,0.00021369,2]
[362675245,1748393441809,-430.0,0.00021643,2]
[362675247,1748393441818,-430.0,0.00021917,2]
[362675249,1748393441828,-227.52,0.0002299,10]
[362675251,1748393441837,-410.41608445,0.00023003,8]
[362675253,1748393441847,-410.41608445,0.00023176,8]
[362675255,1748393441856,-410.41608445,0.00023348,9]
[362675257,1748393441866,-410.41608445,0.00023521,9]
[362675259,1748393441878,-410.41608445,0.00023693,9]
[362675261,1748393441887,-6362.96252423,0.000238,2]
[362675803,1748393446739,-430.0,0.00019178,2]
[362675805,1748393446749,-400.0,0.00019178,2]
[362675807,1748393446759,-430.0,0.00019178,2]
[362675809,1748393446769,-430.0,0.00019178,2]
[362675811,1748393446778,-470.0,0.00019178,2]
[362675813,1748393446788,-430.0,0.00019452,2]
[362675815,1748393446798,-430.0,0.00019452,2]
[362675818,1748393446807,-430.0,0.00019452,2]
[362675820,1748393446816,-430.0,0.00019726,2]
[362675822,1748393446826,-430.0,0.00019726,2]
[362675824,1748393446835,-430.0,0.00019726,2]
[362675826,1748393446845,-430.0,0.0002,2]
[362675828,1748393446854,-430.0,0.00020369,2]
[362675830,1748393446864,-430.0,0.00020369,2]
[362675832,1748393446873,-470.0,0.00020369,2]
[362675833,1748393446886,-430.0,0.00020643,2]
[362675835,1748393446895,-430.0,0.00020917,2]
[362675837,1748393446904,-430.0,0.00021191,2]
[362675839,1748393446914,-430.0,0.00021465,2]
[362675841,1748393446923,-430.0,0.00022191,2]
[362675843,1748393446933,-430.0,0.00022465,2]
[362675845,1748393446942,-355.24,0.00022739,2]
[362675847,1748393446952,-28394.74953077,0.000238,2]
[362675849,1748393446964,-702.06664328,0.000238,2]
[362677778,1748393653111,221.06,0.00021918,30]
[362677781,1748393686817,238.08753,0.00013699,2]
[362677783,1748393725900,195.3270604,0.00018279,120]
[362677835,1748394632743,-379.522498,0.00018204,2]
[362677836,1748394632753,-500.0,0.00019173,2]
[362677837,1748394632763,-500.0,0.00019173,2]
[362677838,1748394632773,-500.0,0.00019173,2]
[362677839,1748394632783,-1134.0,0.00019176,2]
[362677840,1748394632793,-50000.0,0.00019177,2]
[362677841,1748394632803,-500.0,0.00019177,2]
[362677842,1748394632815,-154.20336941,0.00019177,2]
[362677843,1748394632831,-561.65251791,0.00019177,2]
[362677845,1748394632843,-500.0,0.00019177,2]
[362677847,1748394632853,-500.0,0.00019177,2]
[362677849,1748394632863,-500.0,0.00019177,2]
[362677851,1748394632875,-525.68191499,0.00019177,2]
[362677853,1748394632884,-545.06193752,0.00019177,2]
[362677856,1748394632893,-500.0,0.00019177,2]
[362677859,1748394632902,-219.93311261,0.00019177,2]
[362677862,1748394632911,-342.90413253,0.00019177,2]
[362677866,1748394632923,-358.43015467,0.00019177,2]
[362677869,1748394632932,-500.0,0.00019178,2]
[362677872,1748394632942,-500.0,0.00019178,2]
[362677874,1748394632951,-202.80287337,0.00019178,2]
[362677876,1748394632960,-500.0,0.00019178,2]
[362677879,1748394632975,-500.0,0.00019178,2]
[362677881,1748394632984,-500.0,0.00019178,2]
[362677883,1748394632994,-500.0,0.00019178,2]
[362677885,1748394633004,-430.0,0.00019178,2]
[362677887,1748394633013,-400.0,0.00019178,2]
[362677889,1748394633023,-430.0,0.00019178,2]
[362677891,1748394633034,-400.0,0.00019178,2]
[362677893,1748394633044,-430.0,0.00019178,2]
[362677895,1748394633054,-430.0,0.00019178,2]
[362677897,1748394633063,-430.0,0.00019178,2]
[362677899,1748394633072,-430.0,0.00019178,2]
[362677901,1748394633082,-400.0,0.00019178,2]
[362677903,1748394633091,-550.0,0.00019178,2]
[362677905,1748394633102,-430.0,0.00019178,2]
[362677907,1748394633112,-550.0,0.00019178,2]
[362677909,1748394633121,-430.0,0.00019178,2]
[362677911,1748394633134,-430.0,0.00019178,2]
[362677913,1748394633144,-430.0,0.00019178,2]
[362677915,1748394633153,-430.0,0.00019178,2]
[362677917,1748394633163,-430.0,0.00019178,2]
[362677920,1748394633173,-450.0,0.00019178,2]
[362677921,1748394633183,-285.10280752,0.00019178,2]
[362677923,1748394633193,-368.72327715,0.00019178,2]
[362677926,1748394633203,-430.0,0.00019178,2]
[362677928,1748394633213,-430.0,0.00019178,2]
[362677930,1748394633223,-304.73976041,0.00019178,2]
[362677932,1748394633233,-430.0,0.00019178,2]
[362677934,1748394633243,-430.0,0.00019178,2]
[362677936,1748394633252,-430.0,0.00019178,2]
[362677938,1748394633262,-430.0,0.00019178,2]
[362677940,1748394633272,-400.0,0.00019178,2]
[362677942,1748394633282,-430.0,0.00019178,2]
[362677944,1748394633292,-430.0,0.00019178,2]
[362677946,1748394633303,-430.0,0.00019178,2]
[362677948,1748394633313,-400.0,0.00019178,2]
[362677950,1748394633324,-430.0,0.00019178,2]
[362677952,1748394633335,-1000.0,0.00019178,2]
[362677954,1748394633345,-430.0,0.00019178,2]
[362677956,1748394633355,-430.0,0.00019178,2]
[362677958,1748394633365,-300.0,0.00019178,2]
[362677960,1748394633375,-430.0,0.00019178,2]
[362677962,1748394633385,-430.0,0.00019178,2]
[362677964,1748394633395,-430.0,0.00019178,2]
[362677966,1748394633404,-430.0,0.00019178,2]
[362677968,1748394633413,-430.0,0.00019178,2]
[362677970,1748394633423,-430.0,0.00019178,2]
[362677972,1748394633433,-500.0,0.00019178,2]
[362677974,1748394633443,-500.0,0.00019178,2]
[362677976,1748394633453,-251.61588949,0.00019178,2]
[362677978,1748394633463,-326.9439525,0.00019178,2]
[362677980,1748394633472,-430.0,0.00019178,2]
[362677982,1748394633481,-430.0,0.00019178,2]
[362677984,1748394633491,-500.0,0.00019178,2]
[362677986,1748394633500,-160.19330124,0.00019178,2]
[362677988,1748394633510,-470.0,0.00019178,2]
[362677990,1748394633519,-430.0,0.00019178,2]
[362677992,1748394633529,-430.0,0.00019178,2]
[362677994,1748394633538,-430.0,0.00019178,2]
[362677996,1748394633548,-450.0,0.00019178,2]
[362677998,1748394633558,-301.37178757,0.00019178,2]
[362678000,1748394633568,-430.0,0.00019178,2]
[362678002,1748394633580,-430.0,0.00019178,2]
[362678004,1748394633590,-430.0,0.00019178,2]
[362678006,1748394633601,-217.42104227,0.00019178,2]
[362678008,1748394633612,-430.0,0.00019178,2]
[362678010,1748394633623,-430.0,0.00019178,2]
[362678012,1748394633633,-430.0,0.00019178,2]
[362678014,1748394633644,-430.0,0.00019178,2]
[362678016,1748394633653,-450.0,0.00019178,2]
[362678018,1748394633664,-430.0,0.00019178,2]
[362678020,1748394633673,-430.0,0.00019178,2]
[362678022,1748394633683,-430.0,0.00019178,2]
[362678024,1748394633693,-430.0,0.00019178,2]
[362678025,1748394633703,-300.0,0.00019178,2]
[362678027,1748394633713,-430.0,0.00019178,2]
[362678030,1748394633723,-430.0,0.00019178,2]
[362678032,1748394633733,-470.0,0.00019178,2]
[362678034,1748394633743,-308.91896273,0.00019178,2]
[362678035,1748394633752,-350.0,0.00019178,2]
[362678037,1748394633762,-430.0,0.00019178,2]
[362678040,1748394633772,-430.0,0.00019178,2]
[362678041,1748394633781,-430.0,0.00019178,2]
[362678042,1748394633791,-228.47139766,0.00019178,2]
[362678044,1748394633801,-430.0,0.00019178,2]
[362678046,1748394633810,-430.0,0.00019178,2]
[362678048,1748394633820,-373.49,0.00019178,2]
[362678050,1748394633828,-430.0,0.00019178,2]
[362678052,1748394633838,-453.49058654,0.00019178,2]
[362678054,1748394633848,-430.0,0.00019178,2]
[362678056,1748394633858,-430.0,0.00019178,2]
[362678058,1748394633867,-430.0,0.00019178,2]
[362678060,1748394633877,-450.0,0.00019178,2]
[362678062,1748394633887,-553.02224292,0.00019178,2]
[362678064,1748394633896,-430.0,0.00019178,2]
[362678066,1748394633906,-430.0,0.00019178,2]
[362678068,1748394633915,-430.0,0.00019178,2]
[362678069,1748394633925,-437.2179906,0.00019178,2]
[362678071,1748394633934,-430.0,0.00019178,2]
[362678073,1748394633943,-430.0,0.00019178,2]
[362678075,1748394633953,-430.0,0.00019178,2]
[362678077,1748394633962,-430.0,0.00019178,2]
[362678079,1748394633971,-470.0,0.00019178,2]
[362678081,1748394633980,-430.0,0.00019178,2]
[362678083,1748394633990,-430.0,0.00019178,2]
[362678085,1748394633999,-430.0,0.00019178,2]
[362678087,1748394634009,-430.0,0.00019178,2]
[362678089,1748394634019,-450.0,0.00019178,2]
[362678091,1748394634028,-500.0,0.00019178,2]
[362678093,1748394634038,-430.0,0.00019178,2]
[362678095,1748394634048,-430.0,0.00019178,2]
[362678097,1748394634057,-430.0,0.00019178,2]
[362678099,1748394634066,-177.54753458,0.00019178,2]
[362678101,1748394634076,-430.0,0.00019178,2]
[362678103,1748394634085,-370.0,0.00019178,2]
[362678105,1748394634095,-404.78389438,0.00019178,2]
[362678107,1748394634104,-430.0,0.00019178,2]
[362678109,1748394634113,-430.0,0.00019178,2]
[362678111,1748394634123,-430.0,0.00019178,2]
[362678113,1748394634132,-401.22184064,0.00019178,2]
[362678115,1748394634142,-430.0,0.00019178,2]
[362678117,1748394634151,-430.0,0.00019178,2]
[362678119,1748394634160,-430.0,0.00019178,2]
[362678121,1748394634170,-451.43238216,0.00019178,2]
[362678123,1748394634180,-430.0,0.00019178,2]
[362678125,1748394634189,-400.0,0.00019178,2]
[362678127,1748394634199,-430.0,0.00019178,2]
[362678129,1748394634208,-430.0,0.00019178,2]
[362678131,1748394634219,-490.0,0.00019178,2]
[362678133,1748394634228,-430.0,0.00019178,2]
[362678135,1748394634238,-430.0,0.00019178,2]
[362678137,1748394634247,-430.0,0.00019178,2]
[362678138,1748394634257,-453.78898556,0.00019178,2]
[362678140,1748394634268,-430.0,0.00019178,2]
[362678142,1748394634277,-450.0,0.00019178,2]
[362678145,1748394634287,-490.0,0.00019178,2]
[362678147,1748394634296,-430.0,0.00019178,2]
[362678148,1748394634306,-430.0,0.00019178,2]
[362678150,1748394634315,-430.0,0.00019178,2]
[362678152,1748394634325,-390.0,0.00019178,2]
[362678154,1748394634334,-164.09258341,0.00019178,2]
[362678156,1748394634343,-453.07034679,0.00019178,2]
[362678158,1748394634352,-430.0,0.00019178,2]
[362678160,1748394634362,-430.0,0.00019178,2]
[362678162,1748394634371,-450.0,0.00019178,2]
[362678164,1748394634380,-450.0,0.00019178,2]
[362678166,1748394634390,-450.0,0.00019178,2]
[362678168,1748394634401,-453.67047686,0.00019178,2]
[362678170,1748394634411,-430.0,0.00019178,2]
[362678172,1748394634420,-430.0,0.00019178,2]
[362678174,1748394634430,-430.0,0.00019178,2]
[362678176,1748394634439,-430.0,0.00019178,2]
[362678178,1748394634450,-300.44250822,0.00019178,2]
[362678180,1748394634459,-453.76837423,0.00019178,2]
[362678182,1748394634470,-430.0,0.00019178,2]
[362678184,1748394634479,-455.27176951,0.00019178,2]
[362678186,1748394634488,-402.95678948,0.00019178,2]
[362678188,1748394634498,-430.0,0.00019178,2]
[362678190,1748394634507,-430.0,0.00019178,2]
[362678192,1748394634517,-400.71815793,0.00019178,2]
[362678194,1748394634526,-430.0,0.00019178,2]
[362678196,1748394634536,-430.0,0.00019178,2]
[362678198,1748394634545,-450.0,0.00019178,2]
[362678200,1748394634554,-430.0,0.00019178,2]
[362678202,1748394634563,-430.0,0.00019178,2]
[362678204,1748394634575,-430.0,0.00019178,2]
[362678205,1748394634585,-452.02060256,0.00019178,2]
[362678207,1748394634595,-450.48318539,0.00019178,2]
[362678229,1748394634811,-440.0,0.00019178,2]
[362678231,1748394634822,-440.0,0.00019178,2]
[362678233,1748394634831,-451.9045626,0.00019178,2]
[362678235,1748394634841,-402.3913258,0.00019178,2]
[362678237,1748394634850,-430.0,0.00019178,2]
[362678239,1748394634859,-403.09887857,0.00019178,2]
[362678241,1748394634869,-430.0,0.00019178,2]
[362678242,1748394634879,-430.0,0.00019178,2]
[362678243,1748394634889,-430.0,0.00019178,2]
[362678244,1748394634898,-430.0,0.00019178,2]
[362678245,1748394634908,-430.0,0.00019178,2]
[362678246,1748394634917,-430.0,0.00019178,2]
[362678247,1748394634928,-520.51656601,0.00019178,2]
[362678248,1748394634937,-430.0,0.00019178,2]
[362678249,1748394634947,-430.0,0.00019178,2]
[362678250,1748394634956,-430.0,0.00019178,2]
[362678251,1748394634966,-430.0,0.00019178,2]
[362678252,1748394634976,-430.0,0.00019178,2]
[362678253,1748394634986,-430.0,0.00019178,2]
[362678254,1748394634995,-430.0,0.00019178,2]
[362678255,1748394635004,-430.0,0.00019178,2]
[362678256,1748394635014,-430.0,0.00019178,2]
[362678257,1748394635024,-430.0,0.00019178,2]
[362678258,1748394635034,-174.04469604,0.00019178,2]
[362678259,1748394635044,-426.19561167,0.00019178,2]
[362678260,1748394635053,-303.44654473,0.00019178,2]
[362678261,1748394635063,-430.0,0.00019178,2]
[362678262,1748394635073,-430.0,0.00019178,2]
[362678263,1748394635083,-430.0,0.00019178,2]
[362678264,1748394635092,-430.0,0.00019178,2]
[362678265,1748394635102,-430.0,0.00019178,2]
[362678266,1748394635112,-430.0,0.00019178,2]
[362678267,1748394635121,-370.0,0.00019178,2]
[362678268,1748394635131,-430.0,0.00019178,2]
[362678269,1748394635246,-430.0,0.00019178,2]
[362678270,1748394635261,-430.0,0.00019178,2]
[362678271,1748394635271,-430.0,0.00019178,2]
[362678272,1748394635281,-430.0,0.00019178,2]
[362678273,1748394635291,-514.43,0.00019178,2]
[362678274,1748394635300,-430.0,0.00019178,2]
[362678275,1748394635310,-611.29,0.00019178,2]
[362678276,1748394635320,-430.0,0.00019178,2]
[362678277,1748394635329,-430.0,0.00019178,2]
[362678278,1748394635339,-401.17290025,0.00019178,2]
[362678279,1748394635349,-430.0,0.00019178,2]
[362678281,1748394635360,-430.0,0.00019178,2]
[362678283,1748394635369,-430.0,0.00019178,2]
[362678285,1748394635379,-430.0,0.00019178,2]
[362678287,1748394635388,-430.0,0.00019178,2]
[362678289,1748394635397,-430.0,0.00019178,2]
[362678291,1748394635407,-430.0,0.00019178,2]
[362678293,1748394635416,-430.0,0.00019178,2]
[362678295,1748394635426,-490.0,0.00019178,2]
[362678297,1748394635435,-301.41388107,0.00019178,2]
[362678299,1748394635445,-430.0,0.00019178,2]
[362678301,1748394635454,-430.0,0.00019178,2]
[362678303,1748394635464,-430.0,0.00019178,2]
[362678305,1748394635474,-430.0,0.00019178,2]
[362678307,1748394635483,-572.33961661,0.00019178,2]
[362678309,1748394635493,-430.0,0.00019178,2]
[362678311,1748394635502,-1710.83,0.00019178,2]
[362678313,1748394635512,-430.0,0.00019178,2]
[362678315,1748394635522,-1187.51,0.00019178,2]
[362678318,1748394635531,-430.0,0.00019178,2]
[362678320,1748394635541,-430.0,0.00019178,2]
[362678322,1748394635550,-430.0,0.00019178,2]
[362678324,1748394635559,-430.0,0.00019178,2]
[362678326,1748394635569,-430.0,0.00019178,2]
[362678328,1748394635583,-430.0,0.00019178,2]
[362678330,1748394635593,-430.0,0.00019178,2]
[362678332,1748394635602,-430.0,0.00019178,2]
[362678334,1748394635612,-430.0,0.00019178,2]
[362678336,1748394635621,-430.0,0.00019178,2]
[362678338,1748394635632,-430.0,0.00019178,2]
[362678340,1748394635642,-430.0,0.00019178,2]
[362678342,1748394635651,-430.0,0.00019178,2]
[362678344,1748394635662,-430.0,0.00019178,2]
[362678346,1748394635672,-430.0,0.00019178,2]
[362678348,1748394635683,-430.0,0.00019178,2]
[362678350,1748394635692,-500.0,0.00019178,2]
[362678352,1748394635702,-430.0,0.00019178,2]
[362678354,1748394635712,-430.0,0.00019178,2]
[362678356,1748394635721,-430.0,0.00019178,2]
[362678358,1748394635731,-430.0,0.00019178,2]
[362678360,1748394635740,-430.0,0.00019178,2]
[362678362,1748394635750,-430.0,0.00019178,2]
[362678364,1748394635760,-430.0,0.00019178,2]